[Event "*** MasterClass Titled Tuesday Blitz"]
[Site "Chess.com"]
[Date "2017.12.12"]
[Round "8"]
[White "GMKrikor"]
[Black "PulpanJ"]
[Result "1-0"]
[WhiteElo "2656"]
[BlackElo "2483"]
[TimeControl "180+2"]
[EndTime "14:49:03 PST"]
[Termination "GMKrikor won by resignation"]

1. e4 {[%clk 0:03:01.9]} 1... c5 {[%clk 0:03:00.3]} 2. Nf3 {[%clk 0:03:02.8]}
2... d6 {[%clk 0:02:59.6]} 3. c3 {[%clk 0:03:02]} 3... Nf6 {[%clk 0:02:59.1]} 4.
h3 {[%clk 0:03:03.5]} 4... g6 {[%clk 0:02:58.7]} 5. Bd3 {[%clk 0:03:03.7]} 5...
Bg7 {[%clk 0:02:58.1]} 6. Bc2 {[%clk 0:03:05.3]} 6... O-O {[%clk 0:02:56.6]} 7.
O-O {[%clk 0:03:06.6]} 7... Nc6 {[%clk 0:02:47.4]} 8. d4 {[%clk 0:03:07.5]} 8...
cxd4 {[%clk 0:02:45.3]} 9. cxd4 {[%clk 0:03:08.8]} 9... Nb4 {[%clk 0:02:45.9]}
10. Bb3 {[%clk 0:03:10.2]} 10... Nxe4 {[%clk 0:02:43.7]} 11. Qe1 {[%clk
0:03:10.5]} 11... Nxf2 {[%clk 0:02:11.5]} 12. Qxf2 {[%clk 0:03:08.7]} 12... Bf5
{[%clk 0:02:11.9]} 13. Nc3 {[%clk 0:03:05]} 13... a5 {[%clk 0:02:10.8]} 14. a3
{[%clk 0:02:42.5]} 14... Nd3 {[%clk 0:02:07]} 15. Qe2 {[%clk 0:02:42.9]} 15...
Qb6 {[%clk 0:02:03]} 16. Ba2 {[%clk 0:02:26.6]} 16... e5 {[%clk 0:01:44.7]} 17.
Nd5 {[%clk 0:02:17.7]} 17... Qd8 {[%clk 0:01:46.2]} 18. Bg5 {[%clk 0:02:17.3]}
18... Qd7 {[%clk 0:01:43]} 19. Nb6 {[%clk 0:02:07.3]} 19... Qb5 {[%clk 0:01:41]}
20. Nxa8 {[%clk 0:02:07.9]} 20... Rxa8 {[%clk 0:01:41.8]} 21. dxe5 {[%clk
0:02:07.9]} 21... dxe5 {[%clk 0:01:43.6]} 22. Be3 {[%clk 0:01:53.7]} 22... Rd8
{[%clk 0:01:32.3]} 23. Ng5 {[%clk 0:01:47]} 23... Qxb2 {[%clk 0:01:23.6]} 24.
Qxb2 {[%clk 0:01:44.4]} 24... Nxb2 {[%clk 0:01:25.2]} 25. Nxf7 {[%clk 0:01:41]}
25... Rd3 {[%clk 0:01:26.2]} 26. Nxe5+ {[%clk 0:01:41.5]} 1-0

[Event "*** MasterClass Titled Tuesday Blitz"]
[Site "Chess.com"]
[Date "2017.12.12"]
[Round "8"]
[White "Kawhi_Leonard2"]
[Black "evgenysharapov"]
[Result "0-1"]
[WhiteElo "2262"]
[BlackElo "2333"]
[TimeControl "180+2"]
[EndTime "14:49:24 PST"]
[Termination "evgenysharapov won by resignation"]

1. e4 {[%clk 0:03:01.9]} 1... c5 {[%clk 0:03:00.1]} 2. Nf3 {[%clk 0:03:02.6]}
2... d6 {[%clk 0:03:00.4]} 3. d4 {[%clk 0:03:02.8]} 3... cxd4 {[%clk 0:03:00.8]}
4. Nxd4 {[%clk 0:03:04.5]} 4... Nf6 {[%clk 0:03:01.4]} 5. Nc3 {[%clk 0:03:06.1]}
5... Nc6 {[%clk 0:03:01.9]} 6. Bg5 {[%clk 0:03:05.6]} 6... Qb6 {[%clk 0:03:02]}
7. Nb3 {[%clk 0:03:05.9]} 7... e6 {[%clk 0:03:02.3]} 8. Qd2 {[%clk 0:03:07.1]}
8... Be7 {[%clk 0:03:02.8]} 9. O-O-O {[%clk 0:03:07.7]} 9... O-O {[%clk
0:03:03.4]} 10. f4 {[%clk 0:03:08.4]} 10... Rd8 {[%clk 0:03:01.2]} 11. Bd3
{[%clk 0:03:05]} 11... a6 {[%clk 0:03:00]} 12. Kb1 {[%clk 0:03:05.2]} 12... Qc7
{[%clk 0:03:00.3]} 13. g4 {[%clk 0:02:54.4]} 13... b5 {[%clk 0:02:59.6]} 14.
Bxf6 {[%clk 0:02:52.7]} 14... Bxf6 {[%clk 0:02:59.9]} 15. g5 {[%clk 0:02:53.9]}
15... Be7 {[%clk 0:02:58.8]} 16. h4 {[%clk 0:02:55.1]} 16... b4 {[%clk
0:02:59.3]} 17. Ne2 {[%clk 0:02:56.1]} 17... a5 {[%clk 0:02:59.8]} 18. Nbd4
{[%clk 0:02:52.5]} 18... Nxd4 {[%clk 0:02:55.5]} 19. Nxd4 {[%clk 0:02:52.8]}
19... a4 {[%clk 0:02:56]} 20. Qxb4 {[%clk 0:02:26.5]} 20... d5 {[%clk
0:02:52.4]} 21. Qe1 {[%clk 0:02:26.5]} 21... Qb6 {[%clk 0:02:41.9]} 22. e5
{[%clk 0:02:22.3]} 22... Ba3 {[%clk 0:02:32.5]} 23. b3 {[%clk 0:02:19.2]} 23...
axb3 {[%clk 0:02:31.6]} 24. cxb3 {[%clk 0:02:19.2]} 24... Bc5 {[%clk 0:02:21.3]}
25. Nf3 {[%clk 0:02:08.3]} 25... Ba6 {[%clk 0:02:14.2]} 26. h5 {[%clk 0:02:04]}
26... Bxd3+ {[%clk 0:02:13.1]} 27. Rxd3 {[%clk 0:02:03.9]} 27... Rxa2 {[%clk
0:02:12.2]} 28. Kxa2 {[%clk 0:01:55.5]} 28... Qa6+ {[%clk 0:02:12.6]} 29. Kb2
{[%clk 0:01:50.6]} 29... Qxd3 {[%clk 0:02:12.4]} 30. Qd1 {[%clk 0:01:44.1]}
30... Ba3+ {[%clk 0:02:00.4]} 31. Kxa3 {[%clk 0:01:39.4]} 31... Qc3 {[%clk
0:02:00.3]} 0-1

[Event "*** MasterClass Titled Tuesday Blitz"]
[Site "Chess.com"]
[Date "2017.12.12"]
[Round "8"]
[White "lukas_111111"]
[Black "inegrepus"]
[Result "0-1"]
[WhiteElo "2428"]
[BlackElo "2063"]
[TimeControl "180+2"]
[EndTime "14:50:38 PST"]
[Termination "inegrepus won by checkmate"]

1. e4 {[%clk 0:03:01.9]} 1... c5 {[%clk 0:02:33.5]} 2. Nf3 {[%clk 0:03:01.9]}
2... Nc6 {[%clk 0:02:21.3]} 3. Bb5 {[%clk 0:03:01.9]} 3... Nf6 {[%clk
0:02:20.9]} 4. e5 {[%clk 0:02:54.4]} 4... Nd5 {[%clk 0:02:12.3]} 5. O-O {[%clk
0:02:54.4]} 5... Nc7 {[%clk 0:02:11.8]} 6. Bxc6 {[%clk 0:02:52.8]} 6... dxc6
{[%clk 0:02:12.6]} 7. d3 {[%clk 0:02:53.2]} 7... g6 {[%clk 0:02:09.9]} 8. Nc3
{[%clk 0:02:54.3]} 8... Bg7 {[%clk 0:02:07.1]} 9. Ne4 {[%clk 0:02:55.1]} 9... b6
{[%clk 0:02:08.1]} 10. Bg5 {[%clk 0:02:54.7]} 10... O-O {[%clk 0:02:06.5]} 11.
Qd2 {[%clk 0:02:53.8]} 11... Bg4 {[%clk 0:02:03.3]} 12. Bh6 {[%clk 0:02:31.8]}
12... Bxf3 {[%clk 0:02:02.5]} 13. gxf3 {[%clk 0:02:32.6]} 13... Ne6 {[%clk
0:02:03.7]} 14. Bxg7 {[%clk 0:02:32.6]} 14... Kxg7 {[%clk 0:02:04.6]} 15. f4
{[%clk 0:02:29.3]} 15... Nd4 {[%clk 0:01:56.8]} 16. f3 {[%clk 0:02:24.6]} 16...
h6 {[%clk 0:01:48.7]} 17. Ng3 {[%clk 0:02:25.5]} 17... Qd7 {[%clk 0:01:47.6]}
18. Kh1 {[%clk 0:02:24.1]} 18... Qh3 {[%clk 0:01:46.8]} 19. c3 {[%clk
0:02:18.2]} 19... Nf5 {[%clk 0:01:47.5]} 20. Ne4 {[%clk 0:02:19.1]} 20... Rad8
{[%clk 0:01:38.4]} 21. Rad1 {[%clk 0:02:19.5]} 21... Rd7 {[%clk 0:01:38.9]} 22.
Qe2 {[%clk 0:02:19.9]} 22... Rfd8 {[%clk 0:01:37.2]} 23. Nf2 {[%clk 0:02:16]}
23... Ng3+ {[%clk 0:01:29.9]} 24. Kg1 {[%clk 0:02:16.1]} 24... Nxe2+ {[%clk
0:01:30.4]} 25. Kh1 {[%clk 0:02:16.5]} 25... Ng3+ {[%clk 0:01:28.8]} 26. Kg1
{[%clk 0:02:17.2]} 26... Qxf1+ {[%clk 0:01:29.6]} 27. Rxf1 {[%clk 0:02:18.8]}
27... Nxf1 {[%clk 0:01:30.5]} 28. Kxf1 {[%clk 0:02:19.6]} 28... Rxd3 {[%clk
0:01:29.4]} 29. e6 {[%clk 0:02:18]} 29... fxe6 {[%clk 0:01:28]} 30. Kg2 {[%clk
0:02:16.4]} 30... Rd2 {[%clk 0:01:28.8]} 31. Kg3 {[%clk 0:02:17.2]} 31... Rxf2
{[%clk 0:01:29.9]} 32. Kxf2 {[%clk 0:02:16.9]} 32... Rd2+ {[%clk 0:01:31.8]} 33.
Ke3 {[%clk 0:02:17.6]} 33... Rxb2 {[%clk 0:01:32.7]} 34. f5 {[%clk 0:02:19.2]}
34... exf5 {[%clk 0:01:33.6]} 35. Kf4 {[%clk 0:02:19.2]} 35... Kf6 {[%clk
0:01:34.5]} 36. c4 {[%clk 0:02:17.1]} 36... e5+ {[%clk 0:01:35]} 37. Kg3 {[%clk
0:02:18.4]} 37... Rxa2 {[%clk 0:01:34.8]} 38. Kh3 {[%clk 0:02:17.4]} 38... Rc2
{[%clk 0:01:33.9]} 39. Kg3 {[%clk 0:02:16.6]} 39... Rxc4 {[%clk 0:01:35]} 40.
Kh3 {[%clk 0:02:17.2]} 40... Rf4 {[%clk 0:01:35.7]} 41. Kg3 {[%clk 0:02:18.1]}
41... a5 {[%clk 0:01:37]} 42. h4 {[%clk 0:02:14.4]} 42... h5 {[%clk 0:01:37.9]}
43. Kg2 {[%clk 0:02:14.2]} 43... Rxh4 {[%clk 0:01:38.4]} 44. Kg3 {[%clk
0:02:15]} 44... Rf4 {[%clk 0:01:39.4]} 45. Kg2 {[%clk 0:02:15.8]} 45... b5
{[%clk 0:01:41]} 46. Kg3 {[%clk 0:02:17.1]} 46... c4 {[%clk 0:01:42.6]} 47. Kg2
{[%clk 0:02:18.4]} 47... c5 {[%clk 0:01:44.2]} 48. Kg3 {[%clk 0:02:19.9]} 48...
b4 {[%clk 0:01:45.8]} 49. Kg2 {[%clk 0:02:21.2]} 49... a4 {[%clk 0:01:47.5]} 50.
Kg3 {[%clk 0:02:22.6]} 50... c3 {[%clk 0:01:49]} 51. Kg2 {[%clk 0:02:24.1]}
51... b3 {[%clk 0:01:50.6]} 52. Kg3 {[%clk 0:02:25.8]} 52... a3 {[%clk
0:01:52.5]} 53. Kg2 {[%clk 0:02:27.6]} 53... c4 {[%clk 0:01:54.1]} 54. Kg3
{[%clk 0:02:29.5]} 54... c2 {[%clk 0:01:55.6]} 55. Kg2 {[%clk 0:02:31.4]} 55...
b2 {[%clk 0:01:57.3]} 56. Kg3 {[%clk 0:02:33.3]} 56... a2 {[%clk 0:01:59]} 57.
Kg2 {[%clk 0:02:35.2]} 57... c3 {[%clk 0:02:00.5]} 58. Kg3 {[%clk 0:02:37.1]}
58... c1=R {[%clk 0:02:00.8]} 59. Kg2 {[%clk 0:02:39]} 59... b1=R {[%clk
0:02:02.2]} 60. Kg3 {[%clk 0:02:40.2]} 60... a1=R {[%clk 0:02:03.7]} 61. Kg2
{[%clk 0:02:41.6]} 61... c2 {[%clk 0:02:04.7]} 62. Kg3 {[%clk 0:02:43]} 62...
Rf1 {[%clk 0:02:05.8]} 63. Kg2 {[%clk 0:02:44.3]} 63... c1=R {[%clk 0:02:07.3]}
64. Kg3 {[%clk 0:02:45.7]} 64... R4xf3+ {[%clk 0:02:06]} 65. Kg2 {[%clk
0:02:45.9]} 65... e4 {[%clk 0:02:06.7]} 66. Kh2 {[%clk 0:02:44.4]} 66... e3
{[%clk 0:02:07.9]} 67. Kg2 {[%clk 0:02:45.4]} 67... e2 {[%clk 0:02:09.3]} 68.
Kh2 {[%clk 0:02:46.8]} 68... e1=R {[%clk 0:02:10.6]} 69. Kg2 {[%clk 0:02:48.5]}
69... g5 {[%clk 0:02:10.7]} 70. Kh2 {[%clk 0:02:49.7]} 70... f4 {[%clk 0:02:10]}
71. Kg2 {[%clk 0:02:50.9]} 71... g4 {[%clk 0:02:11.5]} 72. Kh2 {[%clk
0:02:51.7]} 72... h4 {[%clk 0:02:13]} 73. Kg2 {[%clk 0:02:52.7]} 73... Ra2#
{[%clk 0:02:13.8]} 0-1

[Event "*** MasterClass Titled Tuesday Blitz"]
[Site "Chess.com"]
[Date "2017.12.12"]
[Round "8"]
[White "calemcc"]
[Black "twitchTriniCupid"]
[Result "0-1"]
[WhiteElo "2263"]
[BlackElo "2219"]
[TimeControl "180+2"]
[EndTime "14:50:46 PST"]
[Termination "twitchTriniCupid won by checkmate"]

1. d4 {[%clk 0:03:01.1]} 1... Nf6 {[%clk 0:03:00.6]} 2. c4 {[%clk 0:03:02.3]}
2... e6 {[%clk 0:03:02]} 3. Nf3 {[%clk 0:03:03.3]} 3... Bb4+ {[%clk 0:03:03]} 4.
Nbd2 {[%clk 0:03:03]} 4... c5 {[%clk 0:03:02.8]} 5. a3 {[%clk 0:03:01.4]} 5...
Bxd2+ {[%clk 0:03:02.7]} 6. Qxd2 {[%clk 0:03:02.1]} 6... cxd4 {[%clk 0:03:04]}
7. Nxd4 {[%clk 0:02:59.5]} 7... d5 {[%clk 0:03:01.5]} 8. e3 {[%clk 0:02:57.9]}
8... O-O {[%clk 0:03:00.4]} 9. cxd5 {[%clk 0:02:56.3]} 9... exd5 {[%clk
0:02:55.2]} 10. Bd3 {[%clk 0:02:56.2]} 10... Nc6 {[%clk 0:02:56.2]} 11. Qc3
{[%clk 0:02:54.8]} 11... Ne5 {[%clk 0:02:47.5]} 12. Be2 {[%clk 0:02:49.2]} 12...
Bg4 {[%clk 0:02:41.1]} 13. Bxg4 {[%clk 0:02:46.5]} 13... Nexg4 {[%clk
0:02:40.4]} 14. h3 {[%clk 0:02:47.5]} 14... Nxf2 {[%clk 0:02:34.3]} 15. O-O
{[%clk 0:02:43]} 15... N2e4 {[%clk 0:02:31.7]} 16. Qb3 {[%clk 0:02:41.1]} 16...
Qd7 {[%clk 0:02:22.5]} 17. Qd3 {[%clk 0:02:41]} 17... Rfe8 {[%clk 0:02:14.3]}
18. b4 {[%clk 0:02:40.9]} 18... Nd6 {[%clk 0:02:05.4]} 19. Nf5 {[%clk
0:02:20.2]} 19... Nxf5 {[%clk 0:02:04.6]} 20. Rxf5 {[%clk 0:02:22.1]} 20... Rad8
{[%clk 0:01:57.5]} 21. Bb2 {[%clk 0:02:22.1]} 21... Ne4 {[%clk 0:01:58.5]} 22.
Raf1 {[%clk 0:02:19]} 22... f6 {[%clk 0:01:45.4]} 23. Bd4 {[%clk 0:02:16]} 23...
Ng3 {[%clk 0:01:42.3]} 24. Bxa7 {[%clk 0:02:09.6]} 24... Nxf5 {[%clk 0:01:22.1]}
25. Rxf5 {[%clk 0:02:05.5]} 25... Qe6 {[%clk 0:01:22.4]} 26. Bd4 {[%clk
0:01:51.6]} 26... Rc8 {[%clk 0:01:01.4]} 27. Bb2 {[%clk 0:01:30.9]} 27... Red8
{[%clk 0:01:01.9]} 28. Rh5 {[%clk 0:01:21.1]} 28... Qe4 {[%clk 0:00:48]} 29.
Qxe4 {[%clk 0:01:09.5]} 29... dxe4 {[%clk 0:00:49.9]} 30. Rb5 {[%clk 0:01:10.3]}
30... Rd2 {[%clk 0:00:44.5]} 31. Bd4 {[%clk 0:01:11.1]} 31... Rcc2 {[%clk
0:00:45.2]} 32. Rxb7 {[%clk 0:01:12.4]} 32... Rxg2+ {[%clk 0:00:46]} 33. Kf1
{[%clk 0:01:13.8]} 33... Rh2 {[%clk 0:00:43.5]} 34. Kg1 {[%clk 0:01:09.3]} 34...
Rhd2 {[%clk 0:00:42.2]} 35. Rb8+ {[%clk 0:01:06.7]} 35... Kf7 {[%clk 0:00:43.1]}
36. Rb7+ {[%clk 0:01:08.6]} 36... Kg6 {[%clk 0:00:43.8]} 37. Bxf6 {[%clk
0:01:08]} 37... Rd1# {[%clk 0:00:43.9]} 0-1

[Event "*** MasterClass Titled Tuesday Blitz"]
[Site "Chess.com"]
[Date "2017.12.12"]
[Round "8"]
[White "wonderfultime"]
[Black "kleinebeer98"]
[Result "1-0"]
[WhiteElo "2702"]
[BlackElo "2516"]
[TimeControl "180+2"]
[EndTime "14:50:54 PST"]
[Termination "wonderfultime won by resignation"]

1. d4 {[%clk 0:03:01.9]} 1... Nf6 {[%clk 0:03:00.3]} 2. Bf4 {[%clk 0:03:01.7]}
2... e6 {[%clk 0:02:59.3]} 3. e3 {[%clk 0:03:03.2]} 3... c5 {[%clk 0:03:00]} 4.
c3 {[%clk 0:03:04.4]} 4... Nc6 {[%clk 0:03:01.4]} 5. Nd2 {[%clk 0:03:05.2]} 5...
b6 {[%clk 0:03:02.8]} 6. Ngf3 {[%clk 0:03:06.4]} 6... Bb7 {[%clk 0:03:04.3]} 7.
Bd3 {[%clk 0:03:07.9]} 7... Be7 {[%clk 0:03:05.7]} 8. O-O {[%clk 0:03:08.9]}
8... h6 {[%clk 0:03:07.3]} 9. h3 {[%clk 0:03:09.9]} 9... O-O {[%clk 0:03:06.4]}
10. a4 {[%clk 0:03:11.3]} 10... d6 {[%clk 0:03:07.3]} 11. Bh2 {[%clk 0:03:10.7]}
11... Qc7 {[%clk 0:03:07.1]} 12. Qe2 {[%clk 0:03:09.4]} 12... Rfe8 {[%clk
0:03:01.1]} 13. Rfc1 {[%clk 0:03:10]} 13... e5 {[%clk 0:03:01.2]} 14. dxe5
{[%clk 0:03:10.8]} 14... Nxe5 {[%clk 0:02:59]} 15. Nxe5 {[%clk 0:03:12]} 15...
dxe5 {[%clk 0:03:00.9]} 16. e4 {[%clk 0:03:13.9]} 16... Rad8 {[%clk 0:03:01.2]}
17. Rd1 {[%clk 0:03:13.4]} 17... Bf8 {[%clk 0:02:52.4]} 18. Bc2 {[%clk
0:02:58.8]} 18... g6 {[%clk 0:02:40]} 19. Nf1 {[%clk 0:02:57.5]} 19... Nh5
{[%clk 0:02:31.5]} 20. Ne3 {[%clk 0:02:57.9]} 20... Nf4 {[%clk 0:02:30.5]} 21.
Qf3 {[%clk 0:02:59]} 21... Bg7 {[%clk 0:02:27]} 22. h4 {[%clk 0:02:34.6]} 22...
h5 {[%clk 0:02:24.5]} 23. g3 {[%clk 0:02:30.9]} 23... Ne6 {[%clk 0:02:15.8]} 24.
Bb3 {[%clk 0:02:31.9]} 24... Qc8 {[%clk 0:02:08.8]} 25. a5 {[%clk 0:01:59.1]}
25... b5 {[%clk 0:02:07.9]} 26. Bd5 {[%clk 0:01:58.3]} 26... c4 {[%clk
0:02:04.8]} 27. Kg2 {[%clk 0:01:53.7]} 27... Bh6 {[%clk 0:01:57.6]} 28. Bxb7
{[%clk 0:01:53.8]} 28... Qxb7 {[%clk 0:01:58.2]} 29. Nd5 {[%clk 0:01:55.7]}
29... Bg7 {[%clk 0:01:54.5]} 30. g4 {[%clk 0:01:54.2]} 30... hxg4 {[%clk
0:01:52.5]} 31. Qxg4 {[%clk 0:01:56.1]} 31... Qa8 {[%clk 0:01:38.7]} 32. h5
{[%clk 0:01:37.2]} 32... Nf4+ {[%clk 0:01:32.9]} 33. Bxf4 {[%clk 0:01:36.2]}
33... exf4 {[%clk 0:01:34.8]} 34. hxg6 {[%clk 0:01:35.4]} 34... Rxe4 {[%clk
0:01:30.5]} 35. Qf5 {[%clk 0:01:33.3]} 35... f3+ {[%clk 0:00:44.2]} 36. Qxf3
{[%clk 0:01:19.9]} 36... Rxd5 {[%clk 0:00:45.3]} 37. Qxf7+ {[%clk 0:01:21]}
37... Kh8 {[%clk 0:00:46.1]} 38. Rxd5 {[%clk 0:01:22.9]} 38... Rg4+ {[%clk
0:00:42.3]} 39. Kf3 {[%clk 0:01:23.8]} 39... Rh4 {[%clk 0:00:42.4]} 40. Re1
{[%clk 0:01:23.6]} 1-0

[Event "*** MasterClass Titled Tuesday Blitz"]
[Site "Chess.com"]
[Date "2017.12.12"]
[Round "8"]
[White "Veiso"]
[Black "cheese111"]
[Result "0-1"]
[WhiteElo "2219"]
[BlackElo "2422"]
[TimeControl "180+2"]
[EndTime "14:51:01 PST"]
[Termination "cheese111 won by resignation"]

1. Nf3 {[%clk 0:03:01.9]} 1... Nf6 {[%clk 0:02:56.5]} 2. d4 {[%clk 0:03:01.2]}
2... d5 {[%clk 0:02:57.2]} 3. c4 {[%clk 0:03:02]} 3... e6 {[%clk 0:02:58.1]} 4.
g3 {[%clk 0:03:02]} 4... dxc4 {[%clk 0:02:48.3]} 5. Bg2 {[%clk 0:02:58.3]} 5...
Nc6 {[%clk 0:02:49.6]} 6. O-O {[%clk 0:02:56.9]} 6... a6 {[%clk 0:02:50.4]} 7.
a4 {[%clk 0:02:53.5]} 7... Na5 {[%clk 0:02:40.5]} 8. Nbd2 {[%clk 0:02:48.8]}
8... c5 {[%clk 0:02:35.2]} 9. Qc2 {[%clk 0:02:38.3]} 9... cxd4 {[%clk
0:02:17.3]} 10. Nxc4 {[%clk 0:02:38.7]} 10... Qc7 {[%clk 0:02:16.4]} 11. b3
{[%clk 0:02:37.3]} 11... Nxc4 {[%clk 0:02:13]} 12. bxc4 {[%clk 0:02:36.9]} 12...
e5 {[%clk 0:01:59.6]} 13. Ng5 {[%clk 0:02:01.3]} 13... Be7 {[%clk 0:01:56.2]}
14. f4 {[%clk 0:01:57.2]} 14... h6 {[%clk 0:01:20.7]} 15. fxe5 {[%clk
0:01:56.6]} 15... hxg5 {[%clk 0:01:16.2]} 16. exf6 {[%clk 0:01:52.6]} 16... Bxf6
{[%clk 0:01:18.1]} 17. Ba3 {[%clk 0:01:30.9]} 17... d3 {[%clk 0:01:17.9]} 18.
exd3 {[%clk 0:01:31.4]} 18... Bxa1 {[%clk 0:01:19.1]} 19. Rxa1 {[%clk
0:01:31.7]} 19... Be6 {[%clk 0:01:20.2]} 20. Qc3 {[%clk 0:01:10.4]} 20... f6
{[%clk 0:01:17.7]} 21. Re1 {[%clk 0:01:09.9]} 21... Kf7 {[%clk 0:01:10.7]} 22.
d4 {[%clk 0:00:49.7]} 22... Qxc4 {[%clk 0:00:44.6]} 23. Qb2 {[%clk 0:00:46.4]}
23... Rad8 {[%clk 0:00:38.2]} 24. Qxb7+ {[%clk 0:00:40.3]} 24... Rd7 {[%clk
0:00:37.5]} 25. Qa7 {[%clk 0:00:13.1]} 25... Rxa7 {[%clk 0:00:34.6]} 0-1

[Event "*** MasterClass Titled Tuesday Blitz"]
[Site "Chess.com"]
[Date "2017.12.12"]
[Round "8"]
[White "KhalilMousavi77"]
[Black "xamax2000"]
[Result "0-1"]
[WhiteElo "2439"]
[BlackElo "2323"]
[TimeControl "180+2"]
[EndTime "14:51:07 PST"]
[Termination "xamax2000 won on time"]

1. e4 {[%clk 0:03:01.7]} 1... e5 {[%clk 0:02:59.8]} 2. Nf3 {[%clk 0:03:01.9]}
2... Nc6 {[%clk 0:02:56.2]} 3. Bc4 {[%clk 0:03:02.8]} 3... Nf6 {[%clk
0:02:56.8]} 4. Ng5 {[%clk 0:03:03.8]} 4... d5 {[%clk 0:02:54.9]} 5. exd5 {[%clk
0:03:04.4]} 5... Na5 {[%clk 0:02:55.1]} 6. Bb5+ {[%clk 0:03:05.7]} 6... c6
{[%clk 0:02:55.9]} 7. dxc6 {[%clk 0:03:06.9]} 7... bxc6 {[%clk 0:02:57.8]} 8.
Bd3 {[%clk 0:03:08]} 8... Ng4 {[%clk 0:02:56]} 9. Nf3 {[%clk 0:03:00.6]} 9... f5
{[%clk 0:02:54.1]} 10. h3 {[%clk 0:03:01.2]} 10... Nxf2 {[%clk 0:02:52.3]} 11.
Kxf2 {[%clk 0:02:58.8]} 11... Bc5+ {[%clk 0:02:52.8]} 12. Kf1 {[%clk 0:02:58]}
12... e4 {[%clk 0:02:53.7]} 13. Qe2 {[%clk 0:02:58.4]} 13... O-O {[%clk
0:02:51.2]} 14. Bc4+ {[%clk 0:02:58.9]} 14... Kh8 {[%clk 0:02:50]} 15. Ne5
{[%clk 0:02:58.8]} 15... Qd4 {[%clk 0:02:03.7]} 16. Nf7+ {[%clk 0:02:18.5]}
16... Rxf7 {[%clk 0:02:03.3]} 17. Bxf7 {[%clk 0:02:20.4]} 17... Ba6 {[%clk
0:02:04.4]} 18. c4 {[%clk 0:02:22.1]} 18... Nxc4 {[%clk 0:02:04.8]} 19. Ke1
{[%clk 0:02:23.8]} 19... Rd8 {[%clk 0:01:45.8]} 20. Nc3 {[%clk 0:02:14.9]} 20...
Nxb2 {[%clk 0:01:33.7]} 21. Qe3 {[%clk 0:01:36.2]} 21... Qe5 {[%clk 0:01:25.9]}
22. Qg5 {[%clk 0:01:25.1]} 22... Be7 {[%clk 0:01:22.1]} 23. d4 {[%clk
0:00:17.7]} 23... exd3+ {[%clk 0:01:19.8]} 24. Kf2 {[%clk 0:00:13.2]} 24... Bxg5
{[%clk 0:01:20.1]} 25. Bxg5 {[%clk 0:00:12.2]} 25... Qxc3 {[%clk 0:01:18.9]} 26.
Bxd8 {[%clk 0:00:10.3]} 26... Qd4+ {[%clk 0:01:20.1]} 27. Kg3 {[%clk 0:00:09.4]}
27... Qxd8 {[%clk 0:01:21]} 28. Bb3 {[%clk 0:00:06]} 28... d2 {[%clk 0:01:19.7]}
29. Rab1 {[%clk 0:00:05.7]} 29... Qd6+ {[%clk 0:01:19.4]} 0-1

[Event "*** MasterClass Titled Tuesday Blitz"]
[Site "Chess.com"]
[Date "2017.12.12"]
[Round "8"]
[White "chidori_boruto"]
[Black "chessking2151"]
[Result "1/2-1/2"]
[WhiteElo "2507"]
[BlackElo "2383"]
[TimeControl "180+2"]
[EndTime "14:51:43 PST"]
[Termination "Game drawn by agreement"]

1. e4 {[%clk 0:02:57.4]} 1... e5 {[%clk 0:03:00.6]} 2. Nf3 {[%clk 0:02:58.4]}
2... Nc6 {[%clk 0:03:01.9]} 3. Bc4 {[%clk 0:02:59.9]} 3... Nf6 {[%clk
0:03:02.6]} 4. d3 {[%clk 0:03:00.8]} 4... Be7 {[%clk 0:03:03.7]} 5. c3 {[%clk
0:03:00.7]} 5... O-O {[%clk 0:03:03.5]} 6. O-O {[%clk 0:03:00.3]} 6... d6 {[%clk
0:03:04.5]} 7. Re1 {[%clk 0:02:57.4]} 7... Na5 {[%clk 0:03:03.7]} 8. Bb5 {[%clk
0:02:58]} 8... a6 {[%clk 0:03:05]} 9. Ba4 {[%clk 0:02:59.3]} 9... b5 {[%clk
0:03:06.6]} 10. Bc2 {[%clk 0:03:00.4]} 10... c5 {[%clk 0:03:08.3]} 11. Nbd2
{[%clk 0:02:59.2]} 11... h6 {[%clk 0:03:07]} 12. h3 {[%clk 0:03:00.3]} 12... Re8
{[%clk 0:03:05.7]} 13. Nf1 {[%clk 0:03:01.7]} 13... Be6 {[%clk 0:03:03.6]} 14.
Ng3 {[%clk 0:03:01.1]} 14... Nc6 {[%clk 0:03:01.2]} 15. d4 {[%clk 0:02:57.2]}
15... cxd4 {[%clk 0:02:59.1]} 16. cxd4 {[%clk 0:02:59.1]} 16... exd4 {[%clk
0:02:32.3]} 17. Nxd4 {[%clk 0:03:01]} 17... Nxd4 {[%clk 0:02:32.2]} 18. Qxd4
{[%clk 0:03:02.4]} 18... Qc7 {[%clk 0:02:29.7]} 19. Bb3 {[%clk 0:02:51.5]} 19...
Bxb3 {[%clk 0:02:29.1]} 20. axb3 {[%clk 0:02:51.8]} 20... Qc2 {[%clk 0:02:24]}
21. Nf5 {[%clk 0:02:38.1]} 21... Qxb3 {[%clk 0:02:07.7]} 22. Bxh6 {[%clk
0:01:51.2]} 22... gxh6 {[%clk 0:01:59.5]} 23. Nxe7+ {[%clk 0:01:27.2]} 23...
Rxe7 {[%clk 0:02:01.4]} 24. Qxf6 {[%clk 0:01:25.7]} 24... Re6 {[%clk 0:02:03]}
25. Qd4 {[%clk 0:01:18.9]} 25... Rg6 {[%clk 0:01:57.3]} 26. Re3 {[%clk
0:01:14.4]} 26... Qe6 {[%clk 0:01:51.1]} 27. f4 {[%clk 0:01:10.7]} 27... Qf6
{[%clk 0:01:48.4]} 28. Qd5 {[%clk 0:01:05.2]} 28... Rf8 {[%clk 0:01:36.6]} 29.
f5 {[%clk 0:00:55.6]} 29... Qxb2 {[%clk 0:01:13.5]} 30. fxg6 {[%clk 0:00:52.4]}
30... Qxa1+ {[%clk 0:01:14.2]} 31. Kf2 {[%clk 0:00:49.5]} 31... Kg7 {[%clk
0:00:57.1]} 32. Rf3 {[%clk 0:00:39.9]} 32... Qb2+ {[%clk 0:00:53.8]} 33. Kf1
{[%clk 0:00:37.7]} 33... Qc1+ {[%clk 0:00:44.6]} 34. Ke2 {[%clk 0:00:36.8]}
34... Qc2+ {[%clk 0:00:27.6]} 35. Ke1 {[%clk 0:00:37.9]} 35... fxg6 {[%clk
0:00:23]} 36. Qd4+ {[%clk 0:00:34.2]} 36... Kg8 {[%clk 0:00:24.2]} 37. Qd5+
{[%clk 0:00:35]} 37... Kg7 {[%clk 0:00:25.5]} 38. Qd4+ {[%clk 0:00:36]} 38...
Kg8 {[%clk 0:00:25.7]} 39. Qd5+ {[%clk 0:00:37.2]} 1/2-1/2